[Event "4NCL Div 2 2024-25"]
[Site "England"]
[Date "2025.02.16"]
[Round "6.20"]
[White "Jones, Steven A"]
[Black "Pitcher, John"]
[Result "1-0"]
[Annotator "ChessBase"]
[ECO "B48"]
[WhiteElo "2175"]
[BlackElo "2147"]
[PlyCount "73"]
[EventDate "2024.11.23"]
[EventType "team-tourn"]
[EventCountry "ENG"]
[SourceTitle "playchess.com"]
[Source "ChessBase"]
[SourceQuality "1"]
[TimeControl "40/6000+30:3000+30"]

1. e4 {[%emt 0:10:40]} c5 {[%emt 0:10:14]} 2. Nf3 {[%emt 0:00:42]} e6 {[%emt 0:00:13]} 3. d4 {[%emt 0:01:02]} cxd4 {[%emt 0:00:08]} 4. Nxd4 {[%emt 0:00:04]} Nc6 {[%emt 0:00:15]} 5. Nc3 {[%emt 0:00:24]} Qc7 {[%emt 0:00:20]} 6. Be3 {[%emt 0:00:48]} a6 {[%emt 0:00:19]} 7. Qd2 {[%emt 0:00:58]} Nf6 {[%emt 0:00:19]} 8. O-O-O {[%emt 0:00:17]} Be7 {[%emt 0:00:35]} 9. f4 {[%emt 0:05:40]} b5 {[%emt 0:01:26]} 10. e5 {[%emt 0:00:29]} b4 {[%emt 0:00:17]} 11. Ncb5 {[%emt 0:00:11]} axb5 {[%emt 0:00:19]} 12. Nxb5 {[%emt 0:00:09]} Qa5 {[%emt 0:01:38]} 13. exf6 {[%emt 0:00:13]} gxf6 {[%emt 0:00:08]} 14. Nd6+ {[%emt 0:00:09]} Bxd6 {[%emt 0:00:14]} 15. Qxd6 {[%emt 0:00:06]} Qxa2 {[%emt 0:00:44]} 16. Rd3 {[%emt 0:00:12]} Qa1+ {[%emt 0:06:26]} 17. Kd2 {[%emt 0:00:08]} Ra2 {[%emt 0:04:37]} 18. Bd4 {[%emt 0:01:44]} Nxd4 {[%emt 0:08:56]} 19. Rxd4 b3 {[%emt 0:28:49]} 20. Rc4 {[%emt 0:13:11]} Ra8 {[%emt 0:02:10]} 21. Rc5 {[%emt 0:00:25]} Qa7 22. Bb5 {[%emt 0:20:31]} Qb8 {[%emt 0:14:46]} 23. Qxb8 {[%emt 0:05:57]} Rxb8 {[%emt 0:00:03]} 24. c4 {[%emt 0:00:56]} Ke7 {[%emt 0:08:32]} 25. Ra1 {[%emt 0:01:54]} Kd6 {[%emt 0:00:39]} 26. Rh5 {[%emt 0:00:36]} f5 {[%emt 0:02:59]} 27. Kc3 {[%emt 0:02:13]} Kc7 {[%emt 0:01:54]} 28. Rg5 {[%emt 0:03:24]} Bb7 {[%emt 0:02:12]} 29. Rg7 {[%emt 0:00:49]} Rhf8 {[%emt 0:00:24]} 30. Kxb3 {[%emt 0:03:19]} d5 {[%emt 0:02:35]} 31. Kc3 {[%emt 0:01:33]} dxc4 {[%emt 0:01:32]} 32. Bxc4 {[%emt 0:00:22]} Kb6 {[%emt 0:01:14]} 33. g3 {[%emt 0:03:12]} h5 {[%emt 0:01:37]} 34. Rh7 {[%emt 0:00:33]} Bf3 {[%emt 0:02:33]} 35. Ra6+ {[%emt 0:00:19]} Kb7 {[%emt 0:00:09]} 36. Rxe6 {[%emt 0:00:17]} Rbd8 {[%emt 0:02:35]} 37. Re7+ {[%emt 0:00:47]} 1-0

[Event "4NCL Div 2 2024-25"]
[Site "England"]
[Date "2025.02.16"]
[Round "6.21"]
[White "Dicen, Elis Denele"]
[Black "Saunders, Aron"]
[Result "0-1"]
[Annotator "NA"]
[ECO "D17"]
[WhiteElo "2100"]
[BlackElo "2106"]
[PlyCount "110"]
[EventDate "2024.11.23"]
[EventType "team-tourn"]
[EventCountry "ENG"]
[SourceTitle "playchess.com"]
[Source "ChessBase"]
[SourceQuality "1"]
[TimeControl "40/6000+30:3000+30"]

1. d4 {[%emt 0:10:03]} d5 {[%emt 0:10:07]} 2. c4 {[%emt 0:00:04]} c6 {[%emt 0:00:03]} 3. Nf3 {[%emt 0:00:06]} Nf6 {[%emt 0:00:04]} 4. Nc3 {[%emt 0:00:08]} dxc4 5. a4 {[%emt 0:00:06]} Bf5 {[%emt 0:00:10]} 6. Nh4 {[%emt 0:00:08]} e6 {[%emt 0:00:41]} 7. Nxf5 {[%emt 0:00:06]} exf5 {[%emt 0:00:05]} 8. e3 {[%emt 0:00:08]} Bd6 {[%emt 0:00:28]} 9. Bxc4 {[%emt 0:00:11]} O-O {[%emt 0:00:24]} 10. Qf3 {[%emt 0:00:54]} Qd7 {[%emt 0:00:55]} 11. h3 {[%emt 0:01:15]} Na6 {[%emt 0:02:31]} 12. Bd3 {[%emt 0:03:04]} g6 {[%emt 0:00:12]} 13. O-O {[%emt 0:01:49]} Nb4 {[%emt 0:02:16]} 14. Bb1 {[%emt 0:01:24]} Nbd5 {[%emt 0:01:13]} 15. Bd2 {[%emt 0:10:17]} Rfe8 {[%emt 0:02:43]} 16. Re1 {[%emt 0:07:21]} Rad8 {[%emt 0:07:51]} 17. e4 {[%emt 0:09:54]} Nxc3 {[%emt 0:03:55]} 18. bxc3 {[%emt 0:03:43]} Nxe4 {[%emt 0:00:40]} 19. Bxe4 {[%emt 0:00:15]} Rxe4 {[%emt 0:01:32]} 20. Rxe4 {[%emt 0:00:14]} fxe4 {[%emt 0:00:05]} 21. Qxe4 {[%emt 0:00:09]} Re8 {[%emt 0:04:35]} 22. Qd3 {[%emt 0:03:27]} Qe6 {[%emt 0:07:53]} 23. Be3 {[%emt 0:04:33]} f5 {[%emt 0:05:53]} 24. Rb1 {[%emt 0:06:47]} Re7 25. Bd2 {[%emt 0:05:17]} Qa2 {[%emt 0:15:26]} 26. c4 {[%emt 0:06:18]} Qxa4 {[%emt 0:04:42]} 27. c5 {[%emt 0:05:15]} Bb8 {[%emt 0:01:35]} 28. d5 {[%emt 0:03:40]} cxd5 {[%emt 0:16:40]} 29. Qxd5+ {[%emt 0:00:56]} Rf7 {[%emt 0:00:22]} 30. Bh6 {[%emt 0:07:49]} Bc7 {[%emt 0:01:23]} 31. Rd1 {[%emt 0:06:29]} Qh4 {[%emt 0:03:51]} 32. Bd2 {[%emt 0:04:14]} Qe4 {[%emt 0:03:39]} 33. Qb3 {[%emt 0:01:30]} Qe5 {[%emt 0:01:12]} 34. g3 {[%emt 0:00:44]} Qxc5 {[%emt 0:00:49]} 35. Re1 {[%emt 0:02:15]} Be5 {[%emt 0:03:25]} 36. Rc1 {[%emt 0:03:52]} Qb6 {[%emt 0:07:03]} 37. Rc8+ {[%emt 0:01:23]} Kg7 {[%emt 0:00:05]} 38. Bh6+ {[%emt 0:01:09]} Kxh6 {[%emt 0:00:04]} 39. Qxf7 {[%emt 0:00:08]} Bxg3 {[%emt 0:02:25]} 40. Qa2 {[%emt 0:00:30]} Bf4 {[%emt 0:02:38]} 41. Kg2 {[%emt 0:52:10]} Qd4 {[%emt 0:24:11]} 42. Re8 {[%emt 0:00:00]} Qd7 {[%emt 0:04:07]} 43. Re6 {[%emt 0:00:00]} b5 {[%emt 0:01:44]} 44. Re2 {[%emt 0:00:00]} Qc6+ {[%emt 0:05:57]} 45. f3 {[%emt 0:00:00]} Qf6 {[%emt 0:00:29]} 46. Qxa7 {[%emt 0:00:00]} Qg5+ {[%emt 0:00:55]} 47. Kf1 {[%emt 0:00:00]} Qg3 {[%emt 0:00:17]} 48. Rf2 {[%emt 0:01:18]} Qxh3+ {[%emt 0:00:25]} 49. Rg2 {[%emt 0:00:49]} Qxf3+ {[%emt 0:00:15]} 50. Rf2 {[%emt 0:00:54]} Qh1+ {[%emt 0:00:38]} 51. Ke2 {[%emt 0:00:11]} Qe4+ {[%emt 0:00:03]} 52. Kf1 {[%emt 0:00:31]} Bg3 {[%emt 0:00:59]} 53. Ra2 {[%emt 0:01:07]} f4 {[%emt 0:02:10]} 54. Ra6 {[%emt 0:00:51]} f3 {[%emt 0:02:25]} 55. Ra1 {[%emt 0:00:31]} Qe2+ {[%emt 0:00:09]} 0-1

[Event "4NCL Div 2 2024-25"]
[Site "England"]
[Date "2025.02.16"]
[Round "6.22"]
[White "Hng, Mei-Xian Eunice"]
[Black "Fellowes, Billy"]
[Result "0-1"]
[Annotator "TA"]
[ECO "E91"]
[WhiteElo "2082"]
[BlackElo "2055"]
[PlyCount "86"]
[EventDate "2024.11.23"]
[EventType "team-tourn"]
[EventCountry "ENG"]
[SourceTitle "playchess.com"]
[Source "ChessBase"]
[SourceQuality "1"]
[TimeControl "40/6000+30:3000+30"]

{[%evp 19,86,0,0,-11,7,0,16,-25,0,-19,0,0,19,0,24,24,75,0,24,0,0,0,0,0,0,0,0,-16,-12,-174,-171,-162,-163,-161,-177,-161,-160,-223,-224,-262,-266,-262,-256,-250,-245,-232,-177,-331,-331,-368,-235,-536,-550,-547,-537,-708,-666,-735,-710,-829,-833,-840,-833,-827,-819,-795,-793,-1412,-1350]} 1. Nf3 {[%emt 0:10:06]} Nf6 {[%emt 0:10:07]} 2. c4 {[%emt 0:00:08]} g6 {[%emt 0:00:06]} 3. d4 {[%emt 0:00:05]} Bg7 {[%emt 0:00:04]} 4. Nc3 d6 {[%emt 0:00:05]} 5. e4 {[%emt 0:00:09]} O-O {[%emt 0:00:05]} 6. h3 {[%emt 0:00:16]} e5 {[%emt 0:00:41]} 7. dxe5 {[%emt 0:08:52]} dxe5 {[%emt 0:00:06]} 8. Be3 {[%emt 0:00:05]} Qe7 {[%emt 0:04:34]} 9. Be2 {[%emt 0:09:32]} c6 {[%emt 0:01:29]} 10. O-O {[%emt 0:03:03]} Na6 {[%emt 0:00:22]} 11. a3 {[%emt 0:03:47] E91: King's Indian: Classical: 6 Be2, unusual replies including 6...c5 and 6...Bg4.} Nc5 {[%emt 0:03:24]} 12. Qc2 {[%emt 0:01:41]} Nh5 {[%emt 0:07:14]} 13. b4 {[%emt 0:04:44] The position is equal.} Ne6 {[%emt 0:00:38]} 14. Rfd1 {[%emt 0:02:34] Prevents Nd4.} Nhf4 {[%emt 0:02:39]} 15. Bf1 f5 {[%emt 0:16:05]} 16. c5 {[%emt 0:33:03]} Kh8 {[%emt 0:01:16]} 17. Rd6 Nh5 $146 {[%emt 0:05:57]} (17... fxe4 $11 18. Qxe4 Ng5 19. Nxg5 Qxg5) ({Predecessor:} 17... fxe4 18. Qxe4 Ng5 19. Nxg5 Qxg5 20. Kh1 Qh5 21. Kh2 g5 22. f3 Bf5 23. Qc4 g4 24. fxg4 Bxg4 {0-1 Castilho,M (2166)-Grego,L (2026) POR Honra Gr14 email 2009}) 18. exf5 {[%emt 0:07:51]} (18. Rad1 $16) 18... gxf5 $11 {[%emt 0:00:23]} 19. Rad1 {[%emt 0:00:15]} (19. Re1 $5) 19... e4 {[%emt 0:16:30]} 20. Nd4 {[%emt 0:02:31]} Ng5 {[%emt 0:00:58]} 21. Qe2 {[%emt 0:07:15]} f4 $1 {[%emt 0:00:20]} 22. Qxh5 {[%emt 0:00:42]} fxe3 {[%emt 0:00:05]} 23. fxe3 {[%emt 0:00:32]} Be5 {[%emt 0:01:18][%cal Oe7g7] The board is on fire.} 24. Rh6 $2 {[%emt 0:03:22] [#] This move loses the game for White.} (24. h4 $11 Qf7 25. Qxf7 (25. Qxg5 $2 {is a self mate.} Qf2+ 26. Kh1 Qxf1+ 27. Rxf1 Rxf1#) 25... Nxf7 26. Nxe4) 24... Qg7 $1 $19 {[%emt 0:03:14]} 25. g4 {[%emt 0:07:38]} Nf7 {[%emt 0:00:46]} 26. Rd6 {[%emt 0:01:04]} Bxd6 {[%emt 0:01:43]} 27. cxd6 {[%emt 0:00:05]} Nxd6 {[%emt 0:00:09]} 28. Bg2 {[%emt 0:00:56]} (28. Kh1 $17) 28... Nc4 {[%emt 0:07:00][%csl LRa3,LRe3]} 29. Re1 {[%emt 0:00:44] [#]} Nxe3 $1 {[%emt 0:01:36][%mdl 512]} 30. Rxe3 {[%emt 0:00:20][%cal Og2e4] aiming for Bxe4!.} Qxd4 {[%emt 0:00:08]} 31. Qc5 {[%emt 0:01:35]} Qxc5 {[%emt 0:00:33]} 32. bxc5 {[%emt 0:00:04]} Bd7 {[%emt 0:06:59]} 33. Rxe4 $2 {[%emt 0:01:07]} (33. Nxe4 Rfe8 34. Re2) 33... Rae8 {[%emt 0:00:19]} 34. Rb4 {[%emt 0:00:51]} Bc8 {[%emt 0:00:55]} 35. Rd4 $2 {[%emt 0:01:24]} (35. Ne4) 35... Re3 {[%emt 0:02:13] Black is clearly winning.} 36. Ne4 {[%emt 0:01:28]} Rxa3 {[%emt 0:00:34]} 37. Rb4 {[%emt 0:00:37]} a5 {[%emt 0:00:27]} 38. Rb6 {[%emt 0:00:24]} a4 {[%emt 0:00:09]} 39. Rb4 {[%emt 0:00:28]} Ra1+ {[%emt 0:00:23]} 40. Kh2 {[%emt 0:00:04]} a3 {[%emt 0:00:09]} 41. Kg3 {[%emt 0:23:06]} a2 {[%emt 0:20:25]} 42. Ra4 {[%emt 0:00:08]} Be6 {[%emt 0:00:08] White must now prevent ...Rg1.} 43. Ra3 {[%emt 0:03:33]} Rc1 {[%emt 0:00:32] Weighted Error Value: White=0.49/Black=0.13 (very precise)   Loses game:     	White=1     	---        Mistake:       	White=4     	Black=1      Inaccurate:     	White=3     	Black=1      OK:         	White=6     	Black=12     Best:        	White=2     	Black=1      Strong:       	---       	Black=2} 0-1

[Event "4NCL Div 2 2024-25"]
[Site "England"]
[Date "2025.02.16"]
[Round "6.23"]
[White "Fallowfield, Jeremy R"]
[Black "Turner, Lewis A"]
[Result "0-1"]
[Annotator "TA"]
[ECO "B23"]
[WhiteElo "2072"]
[BlackElo "1984"]
[PlyCount "95"]
[EventDate "2024.11.23"]
[EventType "team-tourn"]
[EventCountry "ENG"]
[SourceTitle "playchess.com"]
[Source "ChessBase"]
[SourceQuality "1"]
[TimeControl "40/6000+30:3000+30"]

{[%evp 9,95,-14,-14,-14,-7,-8,-17,-20,-4,-16,-10,-12,-28,-7,-14,-8,20,22,25,14,20,19,20,19,32,20,31,22,24,23,49,66,58,42,46,68,78,76,70,68,67,67,67,71,65,72,72,58,64,58,72,54,52,47,95,89,93,88,87,77,97,98,97,30,13,21,44,44,128,41,44,-143,-143,-138,-115,-145,-175,-140,-163,-160,-145,-137,-104,-397,-314,-1110,-1088,-1743]} 1. e4 {[%emt 0:10:31]} c5 {[%emt 0:10:04]} 2. Nc3 {[%emt 0:00:24]} g6 {[%emt 0:00:07]} 3. f4 {[%emt 0:00:28]} Bg7 {[%emt 0:00:06]} 4. Nf3 {[%emt 0:00:14]} Nc6 {[%emt 0:00:05]} 5. a4 {[%emt 0:00:46]} e6 {[%emt 0:02:39]} 6. e5 {[%emt 0:00:10] B23: Closed Sicilian: Lines without g3.} d6 {[%emt 0:02:08][%cal Rd6e5]} 7. Bb5 {[%emt 0:00:08]} Nge7 {[%emt 0:07:42][%cal Rd6e5]} 8. Ne4 {[%emt 0:00:55] The position is equal.} dxe5 {[%emt 0:03:47]} 9. fxe5 {[%emt 0:00:09]} O-O {[%emt 0:00:29]} 10. Nf6+ {[%emt 0:00:07]} Kh8 {[%emt 0:00:16][%cal Oc6e5]} 11. d4 {[%emt 0:00:24]} Nxd4 {[%emt 0:02:27] ...a6 poses a challenge} 12. c3 {[%emt 0:00:35]} (12. Nxd4 Qxd4 13. Qxd4 cxd4 14. O-O) 12... Ndc6 $146 {[%emt 0:15:47][%cal Oc6e5]} ({Predecessor:} 12... Nxb5 13. Qxd8 Rxd8 14. Ng5 Rf8 15. axb5 Bxf6 16. exf6 Ng8 17. O-O b6 18. Bf4 h6 {1-0 Kadric,D (2553)-Niekras,D (2353) Titled Tuesday intern op 06th Aug Early blitz 2024 (9)}) 13. Bg5 {[%emt 0:13:36]} Qxd1+ {[%emt 0:01:48]} 14. Rxd1 {[%emt 0:01:43] A sharp opening} a6 $1 {[%emt 0:04:22]} 15. Be2 {[%emt 0:17:31] White sacrificed a pawn} Nd5 {[%emt 0:05:39]} 16. Nxd5 {[%emt 0:14:55]} exd5 {[%emt 0:00:05]} 17. Rxd5 Be6 {[%emt 0:15:33]} 18. Rxc5 {[%emt 0:06:53]} Rac8 {[%emt 0:00:11]} 19. a5 {[%emt 0:11:42]} Nxe5 {[%emt 0:01:48]} 20. Rxe5 {[%emt 0:10:03]} Bxe5 {[%emt 0:01:09]} 21. Nxe5 {[%emt 0:00:06]} f6 {[%emt 0:00:18]} 22. Bh6 {[%emt 0:00:04]} Rfe8 {[%emt 0:00:43]} 23. Nd3 {[%emt 0:03:39] Black must now prevent Kd2.} Bg4 {[%emt 0:02:00]} 24. Nc1 {[%emt 0:01:38]} Bxe2 {[%emt 0:03:17]} 25. Nxe2 {[%emt 0:00:03]} Rc5 {[%emt 0:00:41][%cal Oc5e5]} 26. Kd2 {[%emt 0:05:14]} (26. Rf1 Rh5 27. Bd2 Rxh2 $16) 26... Rxa5 {[%emt 0:01:39]} 27. Nd4 {[%emt 0:01:55] Wards off Rf5} Kg8 {[%emt 0:03:26]} 28. g4 {[%emt 0:04:46]} Rd5 {[%emt 0:03:08]} 29. Be3 {[%emt 0:03:01]} Rde5 {[%emt 0:02:31]} 30. Bf2 {[%emt 0:00:53]} Kf7 {[%emt 0:00:56]} 31. Rf1 {[%emt 0:00:26]} Kg7 {[%emt 0:07:45]} (31... Re4 $14 {was preferable.}) 32. Bh4 $16 {[%emt 0:01:00]} g5 {[%emt 0:00:26]} 33. Bg3 {[%emt 0:00:49]} Rd5 {[%emt 0:01:48]} 34. Rf5 {[%emt 0:01:26]} Rxf5 {[%emt 0:01:49]} 35. Nxf5+ {[%emt 0:00:02]} Kg6 {[%emt 0:00:26]} 36. Kd3 {[%emt 0:00:04] Inhibits Re4.} (36. Nd6 $16 Re7 37. c4) 36... h5 $11 {[%emt 0:00:26]} 37. h3 {[%emt 0:00:01]} h4 {[%emt 0:01:13]} 38. Bf2 {[%emt 0:00:07]} Re5 {[%emt 0:01:33]} (38... b5 $14) 39. Be3 {[%emt 0:02:22]} (39. c4 $16) 39... Ra5 $1 $14 {[%emt 0:01:26]} 40. Ke4 $2 {[%emt 0:01:02] [#]} (40. Kc2 $14 {keeps the upper hand.}) 40... Ra2 $1 $17 {[%emt 0:00:58][%mdl 1024] Black has strong compensation.} 41. b4 {[%emt 0:27:31] [#]} Rc2 $1 {[%emt 0:22:35]} 42. Bd4 {[%emt 0:03:15]} Rh2 {[%emt 0:00:54]} 43. Ne7+ {[%emt 0:00:23]} Kf7 {[%emt 0:00:50]} 44. Nd5 {[%emt 0:00:18]} Rxh3 {[%emt 0:00:53]} 45. Bxf6 {[%emt 0:02:17]} Kg6 {[%emt 0:01:24] ...Rg3 is the strong threat.} 46. Ke5 $2 {[%emt 0:00:44][%mdl 8192]} (46. Be5 $17) 46... Rf3 {[%emt 0:04:05]} 47. Ne7+ $2 {[%emt 0:00:18]} (47. Ke6) 47... Kf7 $19 {[%emt 0:00:19]} 48. Kd4 {Weighted Error Value: White=0.39/Black=0.09 (flawless)   Loses game:     	White=1     	---        Mistake:       	White=4     	Black=2      Inaccurate:     	White=1     	Black=2      OK:         	White=18    	Black=14     Best:        	White=2     	Black=6      Strong:       	---       	Black=4} 0-1

[Event "4NCL Div 2 2024-25"]
[Site "England"]
[Date "2025.02.16"]
[Round "6.24"]
[White "Taylor, William J"]
[Black "Brooks, Phil J"]
[Result "1/2-1/2"]
[Annotator "NA"]
[ECO "D13"]
[WhiteElo "1994"]
[BlackElo "2124"]
[PlyCount "53"]
[EventDate "2024.11.23"]
[EventType "team-tourn"]
[EventCountry "ENG"]
[SourceTitle "playchess.com"]
[Source "ChessBase"]
[SourceQuality "1"]
[TimeControl "40/6000+30:3000+30"]

1. d4 {[%emt 0:10:04]} d5 {[%emt 0:10:10]} 2. c4 {[%emt 0:00:10]} c6 {[%emt 0:00:43]} 3. Nc3 {[%emt 0:00:24]} Nf6 {[%emt 0:01:12]} 4. cxd5 {[%emt 0:01:13]} cxd5 {[%emt 0:00:04]} 5. Nf3 {[%emt 0:00:21]} Nc6 {[%emt 0:00:04]} 6. Bf4 {[%emt 0:01:22]} a6 {[%emt 0:03:45]} 7. e3 {[%emt 0:05:25]} Bf5 {[%emt 0:00:37]} 8. Bd3 {[%emt 0:01:00]} Bxd3 {[%emt 0:00:17]} 9. Qxd3 {[%emt 0:00:07]} e6 10. O-O Be7 {[%emt 0:04:41]} 11. h3 {[%emt 0:04:09]} O-O {[%emt 0:00:21]} 12. Rac1 Rc8 {[%emt 0:02:04]} 13. Ne5 Qa5 {[%emt 0:25:09]} 14. a3 Rfd8 15. Rc2 {[%emt 0:42:07]} Nxe5 16. Bxe5 Rc6 {[%emt 0:19:20]} 17. Bxf6 {[%emt 0:42:38]} Bxf6 {[%emt 0:05:19]} 18. Rfc1 {[%emt 0:00:00]} h6 {[%emt 0:06:41]} 19. g3 {[%emt 0:00:00]} Rdc8 {[%emt 0:02:20]} 20. Ne2 {[%emt 0:00:00]} Rxc2 {[%emt 0:03:14]} 21. Rxc2 {[%emt 0:00:00]} Rc7 {[%emt 0:01:53]} 22. Rxc7 {[%emt 0:00:00]} Qxc7 {[%emt 0:00:04]} 23. Qc3 {[%emt 0:00:00]} Bd8 {[%emt 0:00:32]} 24. Kf1 {[%emt 0:00:00]} Qxc3 {[%emt 0:00:12]} 25. Nxc3 {[%emt 0:00:00]} Kf8 {[%emt 0:00:03]} 26. Ke2 {[%emt 0:00:00]} Ke7 {[%emt 0:00:05]} 27. Kd3 {[%emt 0:00:00]} 1/2-1/2

[Event "4NCL Div 2 2024-25"]
[Site "England"]
[Date "2025.02.16"]
[Round "6.25"]
[White "Webb, Richard M"]
[Black "Bisby, Daniel L"]
[Result "1-0"]
[Annotator "ChessBase"]
[ECO "B30"]
[WhiteElo "2172"]
[BlackElo "2290"]
[PlyCount "163"]
[EventDate "2024.11.23"]
[EventType "team-tourn"]
[EventCountry "ENG"]
[SourceTitle "playchess.com"]
[Source "ChessBase"]
[SourceQuality "1"]
[TimeControl "40/6000+30:3000+30"]

1. e4 {[%emt 0:10:04]} c5 {[%emt 0:10:22]} 2. Nc3 {[%emt 0:00:16]} Nc6 {[%emt 0:00:46]} 3. Bb5 {[%emt 0:00:12]} Nd4 {[%emt 0:00:43]} 4. Nf3 {[%emt 0:00:10]} e6 {[%emt 0:00:55]} 5. O-O {[%emt 0:00:25]} a6 {[%emt 0:00:31]} 6. Bd3 {[%emt 0:00:38]} Nc6 {[%emt 0:03:23]} 7. b3 {[%emt 0:03:40]} g6 {[%emt 0:02:41]} 8. Bb2 {[%emt 0:00:56]} Bg7 {[%emt 0:00:17]} 9. Na4 {[%emt 0:01:19]} Bxb2 {[%emt 0:00:58]} 10. Nxb2 {[%emt 0:00:05]} d6 {[%emt 0:02:01]} 11. Nc4 {[%emt 0:07:10]} b5 {[%emt 0:04:37]} 12. Ne3 {[%emt 0:00:15]} Nf6 {[%emt 0:00:14]} 13. c3 {[%emt 0:03:56]} O-O {[%emt 0:02:22]} 14. Bc2 {[%emt 0:00:40]} e5 {[%emt 0:03:52]} 15. d4 {[%emt 0:00:29]} exd4 {[%emt 0:07:18]} 16. cxd4 {[%emt 0:00:20]} cxd4 {[%emt 0:05:27]} 17. Nxd4 {[%emt 0:00:56]} Nb4 {[%emt 0:03:58]} 18. Qd2 {[%emt 0:28:48]} Nxc2 {[%emt 0:02:02]} 19. Ndxc2 {[%emt 0:02:35]} Bb7 {[%emt 0:16:43]} 20. f3 {[%emt 0:00:14]} d5 {[%emt 0:09:34]} 21. e5 {[%emt 0:09:11]} Nd7 {[%emt 0:00:27]} 22. f4 {[%emt 0:00:19]} Nc5 {[%emt 0:01:16]} 23. Nd4 {[%emt 0:01:26]} Ne4 {[%emt 0:01:50]} 24. Qd3 {[%emt 0:09:02]} Rc8 {[%emt 0:02:06]} 25. Rac1 {[%emt 0:11:14]} Qa5 {[%emt 0:05:55]} 26. a4 {[%emt 0:04:25]} bxa4 {[%emt 0:03:20]} 27. bxa4 {[%emt 0:00:12]} Qxa4 {[%emt 0:03:40]} 28. f5 {[%emt 0:02:24]} Rxc1 {[%emt 0:04:44]} 29. Rxc1 {[%emt 0:01:16]} Rc8 {[%emt 0:03:03]} 30. Rxc8+ {[%emt 0:02:18]} Bxc8 {[%emt 0:00:05]} 31. h3 {[%emt 0:00:56]} Qa1+ {[%emt 0:00:57]} 32. Kh2 {[%emt 0:00:28]} Qh1+ {[%emt 0:04:19]} 33. Kxh1 {[%emt 0:00:06]} Nf2+ {[%emt 0:00:09]} 34. Kh2 {[%emt 0:03:27]} Nxd3 {[%emt 0:00:08]} 35. fxg6 {[%emt 0:00:06]} Be6 {[%emt 0:03:53]} 36. gxh7+ {[%emt 0:01:46]} Kxh7 {[%emt 0:00:08]} 37. Nc6 {[%emt 0:01:37]} Bd7 {[%emt 0:02:12]} 38. Nb8 {[%emt 0:04:29]} Bb5 {[%emt 0:00:58]} 39. Nxd5 {[%emt 0:00:05]} Nxe5 {[%emt 0:00:07]} 40. Nc7 {[%emt 0:00:09]} Kg7 {[%emt 0:01:21]} 41. Nbxa6 {[%emt 0:50:15]} Bc6 {[%emt 0:23:16]} 42. Nb4 {[%emt 0:00:00]} Bb7 {[%emt 0:06:55]} 43. Ne8+ {[%emt 0:00:00]} Kf8 {[%emt 0:03:23]} 44. Nd6 {[%emt 0:00:00]} Ba8 {[%emt 0:00:37]} 45. g4 {[%emt 0:00:00]} f6 {[%emt 0:04:28]} 46. Kg3 {[%emt 0:00:00]} Bf3 {[%emt 0:00:43]} 47. Nf5 {[%emt 0:00:00]} Bxg4 {[%emt 0:02:37]} 48. hxg4 {[%emt 0:00:00]} Nxg4 {[%emt 0:01:38]} 49. Kxg4 {[%emt 0:00:00]} Kf7 {[%emt 0:00:14]} 50. Kf4 {[%emt 0:00:00]} Ke6 {[%emt 0:01:02]} 51. Ke4 {[%emt 0:00:00]} Kd7 {[%emt 0:01:14]} 52. Kd5 {[%emt 0:00:00]} Kc7 {[%emt 0:00:12]} 53. Nc6 {[%emt 0:00:00]} Kb6 {[%emt 0:00:34]} 54. Ncd4 {[%emt 0:00:00]} Kc7 {[%emt 0:02:31]} 55. Kc5 {[%emt 0:00:00]} Kd7 {[%emt 0:00:37]} 56. Kb6 {[%emt 0:00:00]} Ke8 {[%emt 0:00:19]} 57. Ne6 {[%emt 0:00:00]} Kd7 {[%emt 0:09:18]} 58. Nf4 {[%emt 0:00:00]} Kd8 {[%emt 0:00:00]} 59. Kc6 {[%emt 0:00:00]} Ke8 {[%emt 0:00:00]} 60. Kc7 {[%emt 0:02:56]} Kf7 {[%emt 0:00:00]} 61. Kd7 {[%emt 0:00:38]} Kf8 {[%emt 0:00:00]} 62. Ng6+ {[%emt 0:05:19]} Kf7 {[%emt 0:00:00]} 63. Nge7 {[%emt 0:01:41]} Kf8 {[%emt 0:00:00]} 64. Ke6 {[%emt 0:00:12]} Ke8 {[%emt 0:00:00]} 65. Ng6 {[%emt 0:00:10]} Kd8 {[%emt 0:00:00]} 66. Kd6 {[%emt 0:00:02]} Ke8 {[%emt 0:01:44]} 67. Nf4 {[%emt 0:01:59]} Kf7 {[%emt 0:00:26]} 68. Kd7 {[%emt 0:00:55]} Kf8 {[%emt 0:00:12]} 69. Nd6 {[%emt 0:00:47]} f5 {[%emt 0:01:32]} 70. Ke6 {[%emt 0:00:14]} Kg7 {[%emt 0:00:30]} 71. Ke7 {[%emt 0:00:12]} Kg8 {[%emt 0:01:19]} 72. Ne8 {[%emt 0:01:15]} Kh7 {[%emt 0:00:18]} 73. Kf7 {[%emt 0:00:12]} Kh6 {[%emt 0:00:20]} 74. Kf6 {[%emt 0:00:02]} Kh7 {[%emt 0:00:06]} 75. Ng7 {[%emt 0:00:12]} Kg8 {[%emt 0:01:02]} 76. Nge6 {[%emt 0:00:07]} Kh7 {[%emt 0:00:11]} 77. Kg5 {[%emt 0:00:03]} Kg8 {[%emt 0:00:14]} 78. Kg6 {[%emt 0:00:02]} Kh8 {[%emt 0:00:05]} 79. Nh5 {[%emt 0:00:09]} f4 {[%emt 0:00:16]} 80. Nf6 {[%emt 0:00:02]} f3 {[%emt 0:00:04]} 81. Ng5 {[%emt 0:00:02]} f2 {[%emt 0:00:07]} 82. Nf7# {[%emt 0:03:40]} 1-0